[Event "Dutch Meesterklasse 2024-25"]
[Site "Netherlands"]
[Date "2024.11.09"]
[Round "3.3"]
[White "Ernst, Sipke"]
[Black "Smeets, Kobe"]
[Result "1-0"]
[ECO "A09"]
[WhiteElo "2519"]
[BlackElo "2327"]
[Annotator "RC"]
[PlyCount "109"]
[EventDate "2024.09.21"]
[EventType "team-tourn"]
[EventCountry "NED"]
[SourceTitle "playchess.com"]
[Source "ChessBase"]
[SourceQuality "1"]
[TimeControl "40/5400+30:1800+30"]

1. Nf3 {[%emt 0:00:04]} d5 {[%emt 0:00:17]} 2. c4 {[%emt 0:00:08]} c6 {[%emt 0:00:22]} 3. g3 {[%emt 0:00:56]} Nf6 {[%emt 0:00:09]} 4. Bg2 {[%emt 0:00:05]} dxc4 {[%emt 0:00:04]} 5. O-O {[%emt 0:00:05]} Nbd7 {[%emt 0:00:04]} 6. Qc2 {[%emt 0:00:44]} Nb6 {[%emt 0:00:13]} 7. Na3 {[%emt 0:00:19]} g6 {[%emt 0:00:05]} 8. Nxc4 {[%emt 0:00:44]} Nxc4 {[%emt 0:00:07]} 9. Qxc4 {[%emt 0:00:03]} Bg7 {[%emt 0:00:09]} 10. Qc2 {[%emt 0:03:09]} O-O {[%emt 0:02:37]} 11. b3 {[%emt 0:00:23]} a5 {[%emt 0:02:56]} 12. a3 {[%emt 0:04:00]} a4 {[%emt 0:12:39]} 13. b4 {[%emt 0:00:39]} Nd7 {[%emt 0:00:27]} 14. Bb2 {[%emt 0:03:15]} e5 {[%emt 0:00:51]} 15. Rfd1 {[%emt 0:06:14]} Qe7 {[%emt 0:02:54]} 16. d3 {[%emt 0:00:06]} Nb6 {[%emt 0:05:11]} 17. Rdc1 {[%emt 0:07:46]} Re8 {[%emt 0:03:17]} 18. Nd2 {[%emt 0:01:51]} Bh6 {[%emt 0:09:50]} 19. e3 {[%emt 0:02:04]} Bf5 {[%emt 0:08:28]} 20. Ne4 {[%emt 0:03:15]} Nd7 {[%emt 0:00:15]} 21. Rab1 {[%emt 0:03:38]} Be6 {[%emt 0:03:24]} 22. Bc3 {[%emt 0:17:14]} Bg7 {[%emt 0:07:40]} 23. Nd2 {[%emt 0:10:46]} Nb6 {[%emt 0:08:18]} 24. Qb2 {[%emt 0:04:55]} Bg4 {[%emt 0:07:57]} 25. Ne4 {[%emt 0:05:41]} Nd5 {[%emt 0:02:45]} 26. Be1 {[%emt 0:02:08]} f5 {[%emt 0:02:12]} 27. Qa2 {[%emt 0:03:18]} Kh8 {[%emt 0:02:31]} 28. Nc3 {[%emt 0:03:47]} Nxc3 {[%emt 0:01:04]} 29. Bxc3 {[%emt 0:00:05]} Rad8 {[%emt 0:00:18]} 30. h3 {[%emt 0:02:29]} Bh5 {[%emt 0:00:05]} 31. b5 {[%emt 0:03:25]} c5 {[%emt 0:00:42]} 32. Qc2 {[%emt 0:01:22]} g5 {[%emt 0:02:16]} 33. Ba5 {[%emt 0:01:18]} Rc8 {[%emt 0:01:56]} 34. b6 {[%emt 0:05:03]} Qd7 {[%emt 0:00:59]} 35. Qc4 {[%emt 0:02:43]} Be2 {[%emt 0:12:19]} 36. Qb5 {[%emt 0:00:02]} Qxd3 {[%emt 0:01:32]} 37. Qb2 {[%emt 0:03:29]} e4 {[%emt 0:01:17]} 38. Bc3 {[%emt 0:00:11]} Re7 {[%emt 0:00:04]} 39. Bxg7+ {[%emt 0:00:40]} Rxg7 {[%emt 0:00:01]} 40. Qe5 {[%emt 0:01:47]} Qd7 {[%emt 0:01:38]} 41. Rxc5 {[%emt 0:30:23]} Rxc5 {[%emt 0:05:40]} 42. Qxc5 {[%emt 0:00:00]} h6 {[%emt 0:19:16]} 43. Rb4 {[%emt 0:00:00]} Rf7 {[%emt 0:00:34]} 44. Rd4 {[%emt 0:00:00]} Qe8 {[%emt 0:00:59]} 45. Rd6 {[%emt 0:00:00]} Kh7 {[%emt 0:02:15]} 46. Qd4 {[%emt 0:00:00]} Qe7 {[%emt 0:00:43]} 47. g4 {[%emt 0:00:00]} Bf3 {[%emt 0:01:59]} 48. Bxf3 {[%emt 0:00:00]} exf3 {[%emt 0:00:01]} 49. gxf5 {[%emt 0:00:00]} Qf8 {[%emt 0:01:59]} 50. e4 {[%emt 0:00:00]} Qc8 {[%emt 0:00:14]} 51. Kh2 {[%emt 0:00:00]} Qc1 {[%emt 0:00:10]} 52. Rxh6+ {[%emt 0:00:00]} Kxh6 {[%emt 0:00:11]} 53. Qh8+ {[%emt 0:00:00]} Rh7 {[%emt 0:00:09]} 54. Qf6+ {[%emt 0:00:00]} Kh5 {[%emt 0:00:07]} 55. Qg6+ {[%emt 0:00:00]} 1-0

[Event "Dutch Meesterklasse 2024-25"]
[Site "Netherlands"]
[Date "2024.11.09"]
[Round "3.4"]
[White "Ten Hertog, Hugo"]
[Black "Maatman, Nick"]
[Result "1-0"]
[ECO "A04"]
[WhiteElo "2520"]
[BlackElo "2386"]
[Annotator "RC"]
[PlyCount "113"]
[EventDate "2024.09.21"]
[EventType "team-tourn"]
[EventCountry "NED"]
[SourceTitle "playchess.com"]
[Source "ChessBase"]
[SourceQuality "1"]
[TimeControl "40/5400+30:1800+30"]

1. Nf3 {[%emt 0:00:11]} c5 {[%emt 0:00:21]} 2. g3 {[%emt 0:00:45]} Nc6 {[%emt 0:00:48]} 3. Bg2 {[%emt 0:00:29]} g6 {[%emt 0:00:27]} 4. O-O {[%emt 0:01:24]} Bg7 {[%emt 0:00:07]} 5. c3 {[%emt 0:03:43]} e5 {[%emt 0:10:15]} 6. d3 {[%emt 0:00:36]} Nge7 {[%emt 0:03:17]} 7. a3 {[%emt 0:00:16]} d5 {[%emt 0:21:50]} 8. b4 {[%emt 0:01:18]} b6 {[%emt 0:00:17]} 9. Nbd2 {[%emt 0:03:14]} O-O {[%emt 0:01:18]} 10. Rb1 {[%emt 0:08:41]} cxb4 {[%emt 0:03:08]} 11. axb4 {[%emt 0:01:16]} Bb7 {[%emt 0:01:37]} 12. e4 {[%emt 0:23:36]} Rc8 {[%emt 0:02:05]} 13. Bb2 {[%emt 0:08:32]} Rc7 {[%emt 0:05:38]} 14. Qa4 {[%emt 0:14:31]} Rd7 {[%emt 0:17:06]} 15. Nb3 {[%emt 0:03:09]} Qc7 {[%emt 0:06:00]} 16. c4 {[%emt 0:06:31]} dxe4 {[%emt 0:00:43]} 17. dxe4 {[%emt 0:00:03]} a5 {[%emt 0:02:15]} 18. bxa5 {[%emt 0:02:21]} Nxa5 {[%emt 0:00:22]} 19. Nxa5 {[%emt 0:04:40]} bxa5 {[%emt 0:04:56]} 20. Nxe5 {[%emt 0:01:24]} Rdd8 {[%emt 0:05:44]} 21. Qa1 {[%emt 0:00:31]} Nc6 {[%emt 0:04:01]} 22. Nxg6 {[%emt 0:07:55]} Bxb2 {[%emt 0:01:32]} 23. Qxb2 {[%emt 0:00:04]} hxg6 {[%emt 0:00:04]} 24. Qxb7 {[%emt 0:00:07]} Qxb7 {[%emt 0:01:21]} 25. Rxb7 {[%emt 0:00:04]} Ne5 {[%emt 0:01:13]} 26. Rc1 {[%emt 0:03:17]} Rd2 {[%emt 0:00:31]} 27. c5 {[%emt 0:02:38]} Rc8 {[%emt 0:00:54]} 28. Bh3 {[%emt 0:01:55]} Rc6 {[%emt 0:00:04]} 29. Rb6 {[%emt 0:00:32]} a4 {[%emt 0:02:07]} 30. Rxc6 {[%emt 0:00:41]} Nxc6 {[%emt 0:00:01]} 31. Ra1 {[%emt 0:00:07]} Rd4 {[%emt 0:00:03]} 32. Bf1 {[%emt 0:00:16]} Rb4 {[%emt 0:02:27]} 33. Bd3 {[%emt 0:00:51]} Nd4 {[%emt 0:01:04]} 34. Rc1 {[%emt 0:01:07]} a3 {[%emt 0:01:40]} 35. c6 {[%emt 0:00:36]} Nxc6 {[%emt 0:00:21]} 36. Rxc6 {[%emt 0:00:10]} a2 {[%emt 0:00:01]} 37. Rc1 {[%emt 0:00:39]} Rb3 {[%emt 0:01:40]} 38. Ra1 {[%emt 0:00:11]} Rxd3 {[%emt 0:00:06]} 39. Rxa2 {[%emt 0:00:04]} Kg7 {[%emt 0:00:56]} 40. Kg2 {[%emt 0:00:31]} g5 {[%emt 0:00:25]} 41. Kh3 {[%emt 0:03:21]} f6 {[%emt 0:01:05]} 42. Kg4 {[%emt 0:02:40]} Kg6 {[%emt 0:01:25]} 43. f3 {[%emt 0:03:39]} Rd6 {[%emt 0:03:42]} 44. Ra5 {[%emt 0:00:19]} Rb6 {[%emt 0:00:12]} 45. h4 {[%emt 0:00:13]} gxh4 {[%emt 0:00:04]} 46. Kxh4 {[%emt 0:00:03]} Rc6 {[%emt 0:00:07]} 47. Kg4 {[%emt 0:00:02]} Rb6 {[%emt 0:00:05]} 48. Kf4 {[%emt 0:00:04]} Rc6 {[%emt 0:00:05]} 49. g4 {[%emt 0:00:06]} Rb6 {[%emt 0:00:13]} 50. g5 {[%emt 0:00:23]} fxg5+ {[%emt 0:00:12]} 51. Rxg5+ {[%emt 0:00:04]} Kf6 {[%emt 0:00:05]} 52. e5+ {[%emt 0:00:40]} Kf7 {[%emt 0:00:02]} 53. Kf5 {[%emt 0:00:07]} Ra6 {[%emt 0:00:33]} 54. f4 {[%emt 0:00:04]} Rb6 {[%emt 0:00:03]} 55. e6+ {[%emt 0:01:54]} Kf8 {[%emt 0:01:09]} 56. Kf6 {[%emt 0:00:08]} Rb7 {[%emt 0:00:22]} 57. e7+ {[%emt 0:00:32]} 1-0

[Event "Dutch Meesterklasse 2024-25"]
[Site "Netherlands"]
[Date "2024.11.09"]
[Round "3.5"]
[White "Slagboom, Leandro"]
[Black "Ondersteijn, Niels"]
[Result "1-0"]
[ECO "E28"]
[WhiteElo "2345"]
[BlackElo "2357"]
[Annotator "RC"]
[PlyCount "35"]
[EventDate "2024.09.21"]
[EventType "team-tourn"]
[EventCountry "NED"]
[SourceTitle "playchess.com"]
[Source "ChessBase"]
[SourceQuality "1"]
[TimeControl "40/5400+30:1800+30"]

1. d4 {[%emt 0:00:03]} Nf6 {[%emt 0:00:25]} 2. c4 {[%emt 0:00:06]} e6 {[%emt 0:00:17]} 3. Nc3 {[%emt 0:00:15]} Bb4 {[%emt 0:00:23]} 4. e3 {[%emt 0:00:07]} O-O {[%emt 0:00:33]} 5. a3 {[%emt 0:00:16]} Bxc3+ {[%emt 0:00:15]} 6. bxc3 {[%emt 0:00:06]} Nc6 {[%emt 0:00:08]} 7. Bd3 {[%emt 0:01:13]} e5 {[%emt 0:00:53]} 8. f3 {[%emt 0:03:22]} Qe7 {[%emt 0:04:10]} 9. Ne2 {[%emt 0:04:05]} e4 {[%emt 0:01:55]} 10. fxe4 {[%emt 0:00:48]} Nxe4 {[%emt 0:00:55]} 11. O-O {[%emt 0:00:53]} Na5 {[%emt 0:14:30]} 12. Qc2 {[%emt 0:24:38]} f5 {[%emt 0:02:34]} 13. Rxf5 {[%emt 0:04:26]} Rxf5 {[%emt 0:01:57]} 14. Bxe4 {[%emt 0:00:06]} Rh5 {[%emt 0:07:26]} 15. Ng3 {[%emt 0:01:56]} Qh4 {[%emt 0:02:32]} 16. Bd5+ {[%emt 0:01:03]} Rxd5 {[%emt 0:04:16]} 17. cxd5 {[%emt 0:00:05]} d6 {[%emt 0:13:09]} 18. Qa4 {[%emt 0:01:42]} 1-0

[Event "Dutch Meesterklasse 2024-25"]
[Site "Netherlands"]
[Date "2024.11.09"]
[Round "3.6"]
[White "Ootes, Lars"]
[Black "Hummel, Erik-Jan"]
[Result "1-0"]
[ECO "C19"]
[WhiteElo "2376"]
[BlackElo "2257"]
[Annotator "RC"]
[PlyCount "105"]
[EventDate "2024.09.21"]
[EventType "team-tourn"]
[EventCountry "NED"]
[SourceTitle "playchess.com"]
[Source "ChessBase"]
[SourceQuality "1"]
[TimeControl "40/5400+30:1800+30"]

1. e4 {[%emt 0:05:03]} e6 {[%emt 0:00:25]} 2. d4 {[%emt 0:00:20]} d5 {[%emt 0:00:10]} 3. Nc3 {[%emt 0:00:14]} Bb4 {[%emt 0:00:53]} 4. e5 {[%emt 0:01:28]} c5 {[%emt 0:06:53]} 5. a3 {[%emt 0:00:28]} Bxc3+ {[%emt 0:00:10]} 6. bxc3 {[%emt 0:00:04]} Ne7 {[%emt 0:00:09]} 7. Qg4 {[%emt 0:03:15]} O-O {[%emt 0:00:49]} 8. Bd3 {[%emt 0:04:45]} f5 {[%emt 0:01:22]} 9. exf6 {[%emt 0:01:43]} Rxf6 {[%emt 0:00:17]} 10. Bg5 {[%emt 0:04:37]} Nd7 {[%emt 0:03:24]} 11. Nf3 {[%emt 0:44:01]} c4 {[%emt 0:14:36]} 12. Be2 {[%emt 0:19:49]} Qa5 {[%emt 0:07:25]} 13. O-O {[%emt 0:00:31]} Qxc3 {[%emt 0:02:06]} 14. Rfc1 {[%emt 0:02:11]} Rg6 {[%emt 0:14:42]} 15. Nh4 {[%emt 0:02:21]} Nf6 {[%emt 0:07:01]} 16. Qf4 {[%emt 0:03:42]} Rxg5 {[%emt 0:01:22]} 17. Qxg5 {[%emt 0:00:01]} Qxd4 {[%emt 0:00:45]} 18. Nf3 {[%emt 0:02:44]} Qc5 {[%emt 0:01:25]} 19. c3 {[%emt 0:01:08]} Ne4 {[%emt 0:03:47]} 20. Qh4 {[%emt 0:00:01]} Bd7 {[%emt 0:02:35]} 21. Ne5 {[%emt 0:00:38]} Ng6 {[%emt 0:09:46]} 22. Nxd7 {[%emt 0:00:54]} Qd6 {[%emt 0:00:39]} 23. Qg4 {[%emt 0:00:56]} Qxd7 {[%emt 0:00:23]} 24. Ra2 {[%emt 0:00:48]} Rf8 {[%emt 0:01:14]} 25. Bf1 {[%emt 0:00:08]} Ne5 {[%emt 0:03:01]} 26. Qd1 {[%emt 0:00:26]} Qe7 {[%emt 0:01:14]} 27. f3 {[%emt 0:00:53]} Nc5 {[%emt 0:01:13]} 28. Re2 {[%emt 0:00:48]} Ncd3 29. Rcc2 Qxa3 {[%emt 0:01:58]} 30. Kh1 {[%emt 0:00:07]} Qc5 {[%emt 0:00:37]} 31. Qd2 {[%emt 0:00:15]} Rf6 {[%emt 0:06:18]} 32. Qg5 {[%emt 0:00:31]} h6 {[%emt 0:01:41]} 33. Qh5 {[%emt 0:01:34]} Qd6 {[%emt 0:03:20]} 34. Re3 {[%emt 0:00:22]} Kh7 {[%emt 0:00:25]} 35. Qh4 {[%emt 0:00:40]} Rf4 {[%emt 0:02:22]} 36. Qg3 {[%emt 0:00:00]} g5 {[%emt 0:00:24]} 37. Rce2 {[%emt 0:01:01]} b5 {[%emt 0:01:14]} 38. h3 {[%emt 0:00:17]} Kg6 {[%emt 0:00:47]} 39. Ra2 {[%emt 0:00:25]} Qb6 {[%emt 0:01:17]} 40. Bxd3+ {[%emt 0:00:35]} Nxd3 {[%emt 0:00:22]} 41. Rae2 {[%emt 0:30:28]} Kf6 {[%emt 0:03:42]} 42. Rxe6+ {[%emt 0:00:00]} Qxe6 {[%emt 0:00:08]} 43. Rxe6+ {[%emt 0:00:00]} Kxe6 {[%emt 0:00:09]} 44. h4 {[%emt 0:00:00]} Rxh4+ {[%emt 0:07:38]} 45. Kg1 {[%emt 0:00:00]} b4 {[%emt 0:00:51]} 46. Qc7 {[%emt 0:00:00]} bxc3 {[%emt 0:01:14]} 47. Qc6+ {[%emt 0:00:00]} Ke5 {[%emt 0:02:12]} 48. Qc7+ {[%emt 0:00:00]} Kd4 {[%emt 0:01:02]} 49. Qg7+ {[%emt 0:00:15]} Ne5 {[%emt 0:01:31]} 50. Kf2 {[%emt 0:00:02]} Re4 {[%emt 0:12:56]} 51. fxe4 {[%emt 0:02:30]} Kxe4 {[%emt 0:03:08]} 52. Qh7+ {[%emt 0:00:29]} Kd4 {[%emt 0:00:10]} 53. Qxa7+ {[%emt 0:00:24]} 1-0

[Event "Dutch Meesterklasse 2024-25"]
[Site "Netherlands"]
[Date "2024.11.09"]
[Round "3.7"]
[White "Palchuk, Andrii"]
[Black "Kokje, Joris"]
[Result "1/2-1/2"]
[ECO "E62"]
[WhiteElo "2374"]
[BlackElo "2311"]
[Annotator "ChessBase"]
[PlyCount "111"]
[EventDate "2024.09.21"]
[EventType "team-tourn"]
[EventCountry "NED"]
[SourceTitle "playchess.com"]
[Source "ChessBase"]
[SourceQuality "1"]
[TimeControl "40/5400+30:1800+30"]

1. d4 {[%emt 0:08:50]} Nf6 {[%emt 0:01:17]} 2. c4 {[%emt 0:00:13]} g6 {[%emt 0:00:08]} 3. Nf3 {[%emt 0:00:05]} Bg7 {[%emt 0:00:10]} 4. g3 {[%emt 0:00:05]} d6 {[%emt 0:00:20]} 5. Bg2 {[%emt 0:00:06]} O-O {[%emt 0:00:13]} 6. O-O {[%emt 0:00:05]} Nc6 {[%emt 0:01:24]} 7. Nc3 {[%emt 0:00:06]} e5 {[%emt 0:00:24]} 8. d5 {[%emt 0:00:05]} Ne7 {[%emt 0:03:20]} 9. e4 {[%emt 0:03:04]} Ne8 {[%emt 0:03:04]} 10. Ne1 {[%emt 0:00:45]} f5 {[%emt 0:04:51]} 11. Nd3 {[%emt 0:02:59]} Nf6 {[%emt 0:05:03]} 12. exf5 {[%emt 0:07:04]} Bxf5 {[%emt 0:07:49]} 13. f4 {[%emt 0:00:23]} exf4 {[%emt 0:02:52]} 14. Nxf4 {[%emt 0:00:24]} Qd7 {[%emt 0:07:41]} 15. Re1 {[%emt 0:07:24]} h6 {[%emt 0:15:06]} 16. Ne6 {[%emt 0:08:52]} Rf7 {[%emt 0:04:47]} 17. Nb5 {[%emt 0:10:07]} Rc8 {[%emt 0:00:47]} 18. Nbd4 {[%emt 0:08:55]} c5 {[%emt 0:06:08]} 19. dxc6 {[%emt 0:05:56]} bxc6 {[%emt 0:01:19]} 20. Nxg7 {[%emt 0:00:38]} Kxg7 {[%emt 0:00:36]} 21. Qd2 {[%emt 0:00:08]} Rh8 {[%emt 0:02:28]} 22. b3 {[%emt 0:01:23]} c5 {[%emt 0:10:08]} 23. Ne2 {[%emt 0:13:20]} Nc6 {[%emt 0:05:10]} 24. Bb2 {[%emt 0:01:12]} Ne5 {[%emt 0:01:38]} 25. Nf4 {[%emt 0:05:37]} g5 {[%emt 0:00:22]} 26. Nd5 {[%emt 0:01:08]} Nxd5 {[%emt 0:01:01]} 27. Qxd5 {[%emt 0:00:48]} Re8 {[%emt 0:07:55]} 28. Rad1 {[%emt 0:02:00]} Kh7 {[%emt 0:01:06]} 29. Bxe5 {[%emt 0:05:04]} Rxe5 {[%emt 0:01:30]} 30. Rxe5 {[%emt 0:00:09]} dxe5 {[%emt 0:00:13]} 31. Rf1 {[%emt 0:00:04]} Bg6 {[%emt 0:06:20]} 32. Rxf7+ {[%emt 0:02:03]} Qxf7 {[%emt 0:00:04]} 33. Qxc5 {[%emt 0:03:24]} e4 {[%emt 0:00:17]} 34. Qd4 {[%emt 0:01:33]} Qe7 {[%emt 0:00:56]} 35. Bf1 {[%emt 0:00:15]} Bh5 {[%emt 0:00:54]} 36. Qe3 {[%emt 0:02:13]} a5 {[%emt 0:00:15]} 37. c5 {[%emt 0:00:27]} Qe5 {[%emt 0:00:30]} 38. c6 {[%emt 0:01:17]} Bf3 {[%emt 0:00:32]} 39. Qa7+ {[%emt 0:00:35]} Kg6 {[%emt 0:00:22]} 40. c7 {[%emt 0:00:25]} Bg4 {[%emt 0:00:23]} 41. Qe3 {[%emt 0:30:57]} Qxc7 {[%emt 0:01:30]} 42. Qxe4+ {[%emt 0:00:00]} Bf5 {[%emt 0:00:15]} 43. Qd4 {[%emt 0:00:00]} Qc1 {[%emt 0:05:04]} 44. g4 {[%emt 0:00:00]} Bb1 {[%emt 0:06:02]} 45. Kf2 {[%emt 0:00:00]} Qc2+ {[%emt 0:07:29]} 46. Kg3 {[%emt 0:00:00]} Qc7+ {[%emt 0:02:24]} 47. Kh3 {[%emt 0:00:00]} Qf4 {[%emt 0:01:19]} 48. Qxf4 {[%emt 0:00:00]} gxf4 {[%emt 0:00:08]} 49. a3 {[%emt 0:00:00]} Kg5 {[%emt 0:00:51]} 50. b4 {[%emt 0:00:00]} axb4 {[%emt 0:00:20]} 51. axb4 {[%emt 0:00:00]} Be4 {[%emt 0:01:12]} 52. Be2 {[%emt 0:00:01]} Bc6 {[%emt 0:01:52]} 53. Bd1 {[%emt 0:02:27]} Be4 {[%emt 0:00:40]} 54. Be2 {[%emt 0:00:34]} Bc6 {[%emt 0:00:04]} 55. Bd1 {[%emt 0:01:06]} Be4 {[%emt 0:00:12]} 56. Be2 {[%emt 0:00:07]} 1/2-1/2

[Event "Dutch Meesterklasse 2024-25"]
[Site "Netherlands"]
[Date "2024.11.09"]
[Round "3.8"]
[White "Van de Griendt, Jan Willem"]
[Black "Wempe, Joost"]
[Result "1-0"]
[ECO "E11"]
[WhiteElo "2366"]
[BlackElo "2248"]
[Annotator "RC"]
[PlyCount "87"]
[EventDate "2024.09.21"]
[EventType "team-tourn"]
[EventCountry "NED"]
[SourceTitle "playchess.com"]
[Source "ChessBase"]
[SourceQuality "1"]
[TimeControl "40/5400+30:1800+30"]

1. d4 {[%emt 0:18:50]} Nf6 {[%emt 0:00:09]} 2. c4 {[%emt 0:00:25]} e6 {[%emt 0:00:06]} 3. g3 {[%emt 0:00:15]} d5 {[%emt 0:00:10]} 4. Nf3 {[%emt 0:00:05]} Bb4+ {[%emt 0:00:05]} 5. Bd2 {[%emt 0:00:04]} Be7 {[%emt 0:00:05]} 6. Bg2 {[%emt 0:00:04]} O-O {[%emt 0:00:12]} 7. O-O {[%emt 0:00:35]} c6 {[%emt 0:00:03]} 8. Qc2 {[%emt 0:00:26]} b6 {[%emt 0:00:09]} 9. Rd1 {[%emt 0:00:30]} Ba6 {[%emt 0:01:19]} 10. b3 {[%emt 0:00:17]} Nbd7 {[%emt 0:00:22]} 11. a4 {[%emt 0:00:06]} Rc8 {[%emt 0:08:27]} 12. a5 {[%emt 0:00:14]} c5 {[%emt 0:20:55]} 13. axb6 {[%emt 0:01:18]} Qxb6 {[%emt 0:00:08]} 14. Qa2 {[%emt 0:00:16]} Bb7 {[%emt 0:06:04]} 15. b4 {[%emt 0:09:22]} cxb4 {[%emt 0:05:55]} 16. c5 {[%emt 0:00:41]} Nxc5 {[%emt 0:00:35]} 17. dxc5 {[%emt 0:00:05]} Bxc5 {[%emt 0:00:08]} 18. Be1 {[%emt 0:01:18]} Ne4 {[%emt 0:14:47]} 19. e3 {[%emt 0:01:29]} a6 {[%emt 0:10:37]} 20. Nfd2 {[%emt 0:09:43]} Nc3 {[%emt 0:03:44]} 21. Nxc3 {[%emt 0:00:32]} bxc3 {[%emt 0:00:05]} 22. Nb3 {[%emt 0:00:20]} Bb4 {[%emt 0:02:34]} 23. Na5 {[%emt 0:18:36]} Ba8 {[%emt 0:09:59]} 24. Rdb1 {[%emt 0:00:30]} Rc5 {[%emt 0:08:06]} 25. Nb3 {[%emt 0:03:25]} Rc6 {[%emt 0:04:47]} 26. Nd4 {[%emt 0:01:27]} Rc7 {[%emt 0:01:38]} 27. Qxa6 {[%emt 0:02:36]} Qxa6 {[%emt 0:02:05]} 28. Rxa6 {[%emt 0:00:07]} e5 {[%emt 0:00:44]} 29. Nc2 {[%emt 0:01:04]} Be7 {[%emt 0:00:20]} 30. Ra5 {[%emt 0:09:32]} d4 {[%emt 0:00:41]} 31. exd4 {[%emt 0:00:51]} Bxg2 {[%emt 0:00:16]} 32. Kxg2 {[%emt 0:00:04]} exd4 {[%emt 0:00:18]} 33. Nxd4 {[%emt 0:00:21]} Bf6 {[%emt 0:00:42]} 34. Nc2 {[%emt 0:00:36]} g6 {[%emt 0:00:21]} 35. Rab5 {[%emt 0:03:54]} Kg7 {[%emt 0:00:26]} 36. Rb7 {[%emt 0:00:40]} Rfc8 {[%emt 0:00:57]} 37. Rxc7 {[%emt 0:00:23]} Rxc7 {[%emt 0:00:05]} 38. Kf3 {[%emt 0:01:40]} h5 {[%emt 0:00:15]} 39. h4 {[%emt 0:00:09]} g5 {[%emt 0:00:08]} 40. hxg5 {[%emt 0:00:35]} Bxg5 {[%emt 0:00:07]} 41. Ke2 {[%emt 0:31:48]} h4 {[%emt 0:07:24]} 42. gxh4 {[%emt 0:00:00]} Bxh4 {[%emt 0:01:04]} 43. f3 {[%emt 0:00:00]} Rd7 {[%emt 0:02:22]} 44. Bxc3+ {[%emt 0:00:00]} 1-0

[Event "Dutch Meesterklasse 2024-25"]
[Site "Netherlands"]
[Date "2024.11.09"]
[Round "3.9"]
[White "Hilwerda, Jonas"]
[Black "Hommerson, Paul"]
[Result "1/2-1/2"]
[ECO "C54"]
[WhiteElo "2252"]
[BlackElo "2275"]
[Annotator "NA RC"]
[PlyCount "76"]
[EventDate "2024.09.21"]
[EventType "team-tourn"]
[EventCountry "NED"]
[SourceTitle "playchess.com"]
[Source "ChessBase"]
[SourceQuality "1"]
[TimeControl "40/5400+30:1800+30"]

1. e4 {[%emt 0:00:05]} e5 {[%emt 0:00:03]} 2. Nf3 {[%emt 0:00:04]} Nc6 {[%emt 0:00:05]} 3. Bc4 {[%emt 0:00:03]} Bc5 {[%emt 0:00:10]} 4. c3 {[%emt 0:00:10]} Nf6 {[%emt 0:00:10]} 5. d3 {[%emt 0:00:06]} O-O {[%emt 0:00:26]} 6. O-O {[%emt 0:00:05]} d6 {[%emt 0:00:13]} 7. Re1 {[%emt 0:00:10]} Ne7 {[%emt 0:02:32]} 8. h3 {[%emt 0:00:56]} Ng6 {[%emt 0:02:30]} 9. d4 {[%emt 0:00:34]} Bb6 {[%emt 0:02:01]} 10. Nbd2 {[%emt 0:00:23]} exd4 {[%emt 0:26:03]} 11. cxd4 {[%emt 0:00:03]} d5 {[%emt 0:00:48]} 12. exd5 {[%emt 0:00:06]} Nxd5 {[%emt 0:00:27]} 13. Ne4 {[%emt 0:02:22]} c6 {[%emt 0:05:52]} 14. Qb3 {[%emt 0:04:56]} h6 {[%emt 0:02:37]} 15. Bd2 {[%emt 0:03:31]} Nh4 {[%emt 0:05:51]} 16. Nc5 {[%emt 0:05:16]} Nxf3+ {[%emt 0:05:35]} 17. Qxf3 {[%emt 0:00:07]} Bc7 {[%emt 0:01:52]} 18. Bxd5 {[%emt 0:06:59]} cxd5 {[%emt 0:01:04]} 19. Bf4 {[%emt 0:01:13]} Bxf4 {[%emt 0:06:56]} 20. Qxf4 {[%emt 0:00:12]} b6 {[%emt 0:00:04]} 21. Nd3 {[%emt 0:01:03]} Be6 {[%emt 0:03:53]} 22. Rac1 {[%emt 0:03:18]} Rc8 {[%emt 0:02:50]} 23. Ne5 {[%emt 0:23:42]} Qe7 {[%emt 0:08:13]} 24. a3 {[%emt 0:02:13]} Qb7 {[%emt 0:03:13]} 25. b4 {[%emt 0:05:25]} Rxc1 {[%emt 0:01:52]} 26. Rxc1 {[%emt 0:00:10]} Rc8 {[%emt 0:04:14]} 27. b5 {[%emt 0:01:07]} Rxc1+ {[%emt 0:02:23]} 28. Qxc1 {[%emt 0:00:12]} a6 {[%emt 0:00:03]} 29. Qf1 {[%emt 0:05:48]} axb5 {[%emt 0:00:24]} 30. Qxb5 {[%emt 0:00:02]} Qc7 {[%emt 0:02:28]} 31. Qc6 {[%emt 0:01:22]} Qa7 {[%emt 0:02:08]} 32. Qe8+ {[%emt 0:05:22]} Kh7 {[%emt 0:00:01]} 33. Qf8 {[%emt 0:00:04]} Qc7 {[%emt 0:01:47]} 34. Qb4 {[%emt 0:04:00]} Qc1+ {[%emt 0:01:38]} 35. Kh2 {[%emt 0:00:01]} Qf4+ {[%emt 0:01:50]} 36. Kg1 {[%emt 0:00:01]} Qc1+ {[%emt 0:00:16]} 37. Kh2 {[%emt 0:00:00]} Qf4+ {[%emt 0:03:16]} 38. Kg1 {[%emt 0:00:07]} Qc1+ {[%emt 0:00:21]} 1/2-1/2